Cogmind - Beta 9.2 @@@ ROGUE MODE // 2019.11.20 @ 15:15:33 Player: Cassie Rose Result: Destroyed by G-34 Mercenary with Small Laser Performance ------------- Evolutions (0) 0 Regions Visited (1) 200 Robots Destroyed (15) 75 Value Destroyed (214) 214 Prototype IDs (0) 0 Alien Tech Used (0) 0 Bonus (0) 0 TOTAL SCORE: 489 Bonus ------- None Cogmind --------- Core Integrity 0/250 Matter 241/300 Energy 100/100 System Corruption 0% Temperature Cool (6) Movement Core (550) Ox10 Location -10/Materials Parts ------- > --- POWER (1) -------- (None) > --- PROPULSION (2) --- (None) > --- UTILITY (2) ------ High-capacity Storage Unit Improved Terrain Scanner > --- WEAPON (2) ------- (None) > --- INVENTORY (12) --- Sensor Array Signal Interpreter Improved Terrain Scanner Peak State ------------ > --- POWER ------------ Light Ion Engine > --- PROPULSION ------- Wheel Compact Wheel > --- UTILITY ---------- Small Storage Unit Improved Terrain Scanner > --- WEAPON ----------- EM Pulse Gun > --- INVENTORY -------- Light Ion Engine Assault Rifle [Rating: 7] Favorites ----------- Power Light Ion Engine Engine Light Ion Engine Propulsion Compact Wheel Wheel Compact Wheel Flight Unit Flight Unit Utility Improved Terrain Scanner Device Improved Terrain Scanner Storage High-capacity Storage Unit Weapon Assault Rifle Energy Gun EM Pulse Gun Ballistic Gun Assault Rifle Build | -11 -10 ------- Run | Scr Mat Slots Evolved . | . . Power . | . . Propulsion . | . . Utility . | . . Weapon . | . . Parts Attached 12 | 6 6 Power 3 | 1 2 Engine 3 | 1 2 Core . | . . Reactor . | . . Propulsion 4 | 2 2 Treads . | . . Leg . | . . Wheel 2 | 2 . Hover . | . . Flight 2 | . 2 Utility 3 | 2 1 Device 1 | 1 . Storage 2 | 1 1 Processor . | . . Hackware . | . . Protection . | . . Artifact . | . . Weapon 2 | 1 1 Energy Gun 1 | 1 . Energy Cannon . | . . Ballistic Gun 1 | . 1 Ballistic Cannon . | . . Launcher . | . . Special Weapon . | . . Impact Weapon . | . . Slashing Weapon . | . . Piercing Weapon . | . . Special Melee Weapon . | . . Unidentified Prototypes . | . . Parts Lost 7 | . 7 Power 2 | . 2 Propulsion 3 | . 3 Utility . | . . Weapon 2 | . 2 Highest Loss Streak 4 | . 4 Average Slot Usage (%) 76 | . 76 Engine 13 | . 13 Wheel 15 | . 15 Flight 4 | . 4 Device 14 | . 14 Storage 14 | . 14 Energy Gun 4 | . 4 Ballistic Gun 9 | . 9 Naked Turns . | . . Heaviest Build 38 | 10 38 Greatest Support 26 | 26 26 Greatest Overweight (x) 4 | 1 4 Average Overweight (x) 1 | . 1 Largest Inventory Capacity 12 | 6 12 Average Capacity 9 | 5 10 Most Carried 7 | 4 7 Average Carried 3 | 2 3 Final Capacity 12 | 6 12 Final Carried 3 | 3 3 Class Distribution -------------------- 88% | Mutant 11% | Scavenger-Mutant Dominant Class ---------------- Mutant | -10/Materials Resources | -11 -10 ----------- Run | Scr Mat Matter Collected 271 | 260 11 Remotely . | . . Salvage Created 425 | 233 192 Parts 33 | 15 18 Haulers Intercepted . | . . Recyclers Shooed . | . . Parts Field Recycled . | . . Retrieved Matter . | . . Parts Self-Destructed . | . . Prevented . | . . Kills | -11 -10 ------- Run | Scr Mat Combat Hostiles Destroyed 7 | . 7 Guns 6 | . 6 AOE 1 | . 1 Classes Destroyed 6 | 3 3 Worker 2 | 2 . Tunneler 4 | 4 . Recycler 1 | 1 . Watcher 1 | . 1 Swarmer 4 | . 4 Grunt 3 | . 3 Best Kill Streak 4 | 4 3 Combat Bots Only 3 | . 3 Max Kills in Single Turn 1 | 1 1 Gunslinging . | . . Exploded 1 | . 1 Melee . | . . Uniques/NPCs Destroyed . | . . Combat | -11 -10 -------- Run | Scr Mat Damage Taken 604 | . 604 Core 259 | . 259 Absorbed by Shields . | . . Core Remaining (%) 100 | 100 . Volleys Fired 58 | 21 37 Largest 1 | 1 1 Hottest 40 | 40 40 Shots Fired 58 | 21 37 Gun 58 | 21 37 Cannon . | . . Launcher . | . . Special . | . . Kinetic 15 | . 15 Thermal . | . . Explosive . | . . Electromagnetic 43 | 21 22 Robot Hit Streak 8 | 6 8 Robot Miss Streak 4 | 1 4 Penetration Max . | . . Secondary Targets . | . . Shots Hit Robots 41 | 18 23 Core Hits 17 | 8 9 Critical Hits . | . . Critical Kills . | . . Critical Parts Destroyed . | . . Melee Attacks . | . . Impact . | . . Slashing . | . . Piercing . | . . Sneak Attacks . | . . Combat Hostiles . | . . Follow-up Attacks . | . . Damage Inflicted 773 | 325 448 Guns 576 | 242 334 Cannons . | . . Explosions 197 | 83 114 Melee . | . . Ramming . | . . Kinetic 111 | . 111 Thermal 83 | 83 . Explosive 114 | . 114 Electromagnetic 465 | 242 223 Impact . | . . Slashing . | . . Piercing . | . . Highest Corruption . | . . Average Corruption . | . . Corruption Purged . | . . Overload Shots . | . . Overflow Damage 40 | 22 18 Projectiles . | . . Explosions 40 | 22 18 Melee . | . . Knockbacks . | . . Impact . | . . Kinetic . | . . Secondary . | . . Self-Inflicted Damage 150 | . 150 Shots 2 | . 2 Rammed . | . . Targets Rammed . | . . Kicked . | . . Crushed . | . . Highest Temperature 20 | 20 18 Average Temperature 13 | 20 11 Received Heat Transfer 84 | . 84 Siege Activations . | . . Robots Corrupted . | . . Combat Hostiles . | . . Parts Fried 2 | 1 1 Impact Corruptions . | . . Robots Melted . | . . Combat Hostiles . | . . Parts Melted . | . . Heat Transferred 100 | 100 . Parts Sabotaged . | . . Parts Stolen . | . . Parts Stripped . | . . Power Chain Reactions 2 | 2 . Missiles Intercepted . | . . Alert | -11 -10 ------- Run | Scr Mat Peak Influence 225 | 35 225 Average Influence 126 | 12 174 Maximum Alert Level 1 | . 1 Low Security (%) 66 | 100 51 Level 1 34 | . 48 Level 2 . | . . Level 3 . | . . Level 4 . | . . Level 5 . | . . High Security . | . . Max Security . | . . Squads Dispatched 1 | . 1 Investigation 1 | . 1 Extermination . | . . Reinforcement . | . . Assault . | . . Garrison . | . . Intercept . | . . Construction Impeded . | . . Haulers Reinforced . | . . Stealth | -11 -10 --------- Run | Scr Mat Distress Signals . | . . Communications Jammed . | . . Distress Signals . | . . Times Spotted 12 | . 12 Peak Tracking Total 3 | . 3 Tactical Retreats 1 | . 1 Traps | -11 -10 ------- Run | Scr Mat Traps Triggered . | . . Indirectly . | . . Trap Hack Attempts . | . . Triggered . | . . Disarmed . | . . Reprogrammed . | . . Reused . | . . Traps Extracted . | . . Installed . | . . Triggered . | . . Machines | -11 -10 ---------- Run | Scr Mat Machines Disabled 2 | . 2 Max in Single Turn 2 | . 2 Machines Sabotaged . | . . Garrisons Compromised . | . . Overloaded Fab Kills . | . . Fab Network Shutdowns . | . . Hacking | -11 -10 --------- Run | Scr Mat Machines Accessed 2 | . 2 Terminals 2 | . 2 Fabricators . | . . Repair Stations . | . . Recycling Units . | . . Scanalyzers . | . . Garrison Access . | . . Total Hacks 4 | . 4 Successful 1 | . 1 Failed 3 | . 3 Catastrophic . | . . Database Lockouts . | . . Manual 4 | . 4 Terminals 4 | . 4 Fabricators . | . . Repair Stations . | . . Recycling Units . | . . Scanalyzers . | . . Garrison Access . | . . Terminal Hacks . | . . Fabricator Hacks . | . . Repair Station Hacks . | . . Recycling Unit Hacks . | . . Scanalyzer . | . . Garrison Access Hacks . | . . Unauthorized Hacks 5 | . 5 Terminals 1 | . 1 Assimilate 1 | . 1 Fabricators . | . . Repair Stations . | . . Recycling Units . | . . Scanalyzers . | . . Garrison Access . | . . Data Cores Recovered . | . . Used . | . . Hacking Detections 2 | . 2 Full Trace Events 1 | . 1 Feedback Events . | . . Feedback Blocked . | . . Robot Schematics Acquired . | . . Robots Built . | . . Matter . | . . Time . | . . Total Robot Build Rating . | . . Part Schematics Acquired . | . . Parts Built . | . . Matter . | . . Time . | . . Total Part Build Rating . | . . Parts Repaired . | . . Time . | . . Parts Recycled . | . . Recycled Matter . | . . Retrieved Matter . | . . Retrieved Components . | . . Parts Scanalyzed . | . . Part Schematics Acquired . | . . Parts Damaged . | . . Bothacking | -11 -10 ------------ Run | Scr Mat Used RIF Installer . | . . Robots Hacked . | . . Non-combat . | . . Combat . | . . Robot Hacks Applied . | . . Relay Couplers Released . | . . Robots Rewired . | . . Allies Hacked . | . . Hacks Repelled . | . . Allies | -11 -10 -------- Run | Scr Mat Total Allies . | . . Largest Group . | . . Highest-Rated Group . | . . Highest-Rated Ally . | . . Total Orders . | . . Ally Attacks . | . . Total Damage . | . . Kills . | . . Allies Corrupted . | . . Allies Melted . | . . Intel | -11 -10 ------- Run | Scr Mat Robot Analysis Total . | . . Derelict Logs Recovered . | . . Drone Launches . | . . Drone Recoveries . | . . Exploration | -11 -10 ------------- Run | Scr Mat Turns Passed 450 | 132 318 Spaces Moved 229 | 72 157 Core 7 | 7 . Treads . | . . Legs . | . . Wheels 210 | 65 145 Hover . | . . Flight 12 | . 12 Fastest Speed 50 | 50 90 Average Speed 116 | 89 128 Slowest Speed 357 | 100 357 Overloaded Moves . | . . Propulsion Burnouts . | . . Robots Hopped . | . . Cave-ins Triggered . | . . Exploration Rate (%) 24 | 5 43 Regions Visited 1 Branch Regions . Pre-discovered Areas . | . . Known Exits Taken . | . . Unknown Exits Taken 1 | 1 . Scrap Searched . | . . Spaces Dug . | . . Terrain Destroyed 56 | 11 45 Melee . | . . Projectile . | . . AOE 56 | 11 45 Actions | -11 -10 --------- Run | Scr Mat Total 355 | 118 237 Wait 39 | 11 28 Move 228 | 71 157 Hop . | . . Pick Up 15 | 9 6 Fast Attach . | . . Attach 9 | 6 3 Detach . | . . Swap 3 | . 3 Drop 3 | . 3 Fire 58 | 21 37 Melee . | . . Ram . | . . Kick . | . . Crush . | . . Escape Stasis . | . . Rewire . | . . Trap . | . . Miscellaneous . | . . Route ------- -11/Scrapyard -10/Materials (discovered 1 exit: [*Min]) History --------- Turn | Location | Event 21 | -11/Scrapyard | Discovered new exit (range 16) 133 | -11/Scrapyard | Entered Materials 237 | -10/Materials | Core integrity fell below 50% 267 | -10/Materials | Lost 3 parts (1p1n1w) 315 | -10/Materials | Build established: Mutant 334 | -10/Materials | Discovered new exit (range 11) 447 | -10/Materials | Core integrity fell below 20% 451 | -10/Materials | Destroyed by G-34 Mercenary with Small Laser Last Messages --------------- 00389_ Acquired Lgt. Ion Engine. 00392_ Acquired Flight Unit. 00393_ K-01 Serf cleans the Nuclear Reactor. 00394_ Acquired 11 matter. 00396_ Acquired Flight Unit. 00397_ K-01 Serf cleans the Nuclear Reactor. 00401_ Dropped Lgt. Ion Engine. 00402_ Dropped Com. Wheel. 00402_ Dropped Sml. Storage Unit. 00404_ K-01 Serf cleans the Nuclear Reactor. 00416_ R-06 Scavenger collects Com. Wheel. 00419_ R-06 Scavenger collects Lgt. Ion Engine. 00423_ R-06 Scavenger collects Sml. Storage Unit. 00446_ Nuclear Reactor explodes. 00446_ Flight Unit destroyed. 00446_ G-34 Mercenary destroyed. 00446_ Lgt. Ion Engine destroyed. 00446_ Assault Rifle destroyed. 00450_ K-01 Serf collects debris. 00450_ R-06 Scavenger collects Heat Sink. Map ----- +----------------------------------------------------+ | | | ?????????????????????????????????????????????????? | | ?????????????????????????????????????????????????? | | ?????????????????????????????????????????????????? | | ?????????????????????????????????????????????????? | | ?????????????????????????????????????????????????? | | ?????????????????????????????????????????????????? | | ?????????????????????????? ??????????????????????? | | ?????????????????????????????????????????????????? | | ?????????????????????????????????????????????????? | | ???????????????????? ?????? ?????????????????????? | | ???????????????????#?????? ??????????????????????? | | ??????????????????????????????????? ?????????????? | | ?????????????? #########+###??????#??????????????? | | ?????????????? ##########+###????????? | | ????????????? #???????? | | ????????????? +???????? | | ???????????? [ k #???????? | | ???????????? #???????? | | ???????????? #???????? | | ????????????? ?"" """ """ ? ????????? | | ??????????????""" """ """????????????? | | ?????????? """ """ g """ ??????? | | ?????????? r ??????? | | ?????????? ?????? | | ???????????#???####### @ ######?????????? | | ??????????#? ????????# #???#???????? | | ???????????? ?"??????# a # """ #???????????? | | ??????????????"???? ?# ! #??""""?????#????????? | | ?????????????????????# #????""??????????????? | | ??????????????????? ?##+#####????????????????????? | | ??????????? ????? ???# #??? ???????????????????? | | ?????????????? ?? ???# ##??????????????????????? | | ???????????????????#?# #??? ??? ???#???????????? | | ????????????########?# #?##???? ???????????????? | | ??????####### ## ##T#####+####???????????? | | ????? ??????????? | | ????? < #?????????????? | | ????? " #?????????????? | | ????????#####" "## T ##+###?????????????? | | ????????????#" |"| "?# " #??????????????????? | | ????????????#"""""""?# #??????????????????? | | ??????? ?###########?# #???"??????????????? | | ?????????# #??## #??????????????????? | | ???? ?"??# ! ########## #? ????????#???????? | | ?????????# # # #??????????????????? | | ?????????# """ # """" # #??????????????????? | | ????? ???# """ # """" # #?????#????????????? | | ?????????# """ # """" # #?????#????????????? | | ?????????# # # ####?????????????????? | +----------------------------------------------------+ Best States ------------- Heat Dissipation 25 Energy Generation 10 Energy Capacity 125 Matter Stores 300 Matter Capacity 300 Sight Range 16 Terrain Scan Range 16 Terrain Scan Density 10 Evasion (%) 42 Item Schematics ----------------- None Robot Schematics ------------------ None Fabricated ------------ Nothing Alien Tech Used ----------------- None Achievements -------------- None Challenges ------------ None Game ------ Seed ReflectiveReflectiveScanner Manual? 0 Play Time 00:07:55 Cumulative 29.8 hours Start 2019.11.20 @ 15:09:00 End 2019.11.20 @ 15:15:33 Sessions 1 Manual Loads 0 Difficulty Rogue Special Mode None Game No. 40 Rogue 40 Adventurer 0 Explorer 0 Win Type - Total 0 Types 0/0/0/0/0/0/0 Lore% 21 Gallery% 18 Achievement% 19 Wizard Run 0 Options --------- ASCII 0 Keyboard 0 Movement Mouse Keybinds 0 Fullscreen 1 Font 18/X11 Map View 76x50 Tactical HUD 1 Map Filters NONE Filters LOW_CONTRAST(13,24,33) Steam 1 RUN: e2b592f7-c16c-496d-b61a-1de49a9e3f68